Cogmind - Beta 13 @@@ ROGUE MODE // 2024.03.20 @ 17:51:08 Player: Jay Result: Destroyed by H-55 Commando with Assault Rifle Performance ------------- Evolutions (1) 500 Regions Visited (5) 1000 Robots Destroyed (45) 225 Value Destroyed (799) 799 Prototype IDs (1) 20 Alien Tech Used (0) 0 Bonus (14) 14 TOTAL SCORE: 2558 Bonus ------- High Alert Combat Kills 14 Cogmind --------- Core Integrity 0/400 Matter 450/450 Energy 99/100 System Corruption 0% Temperature Cool (0) Movement Core (250) Ox4 Location -8/Mines Parts ------- > --- POWER (1) -------- (None) > --- PROPULSION (2) --- (None) > --- UTILITY (3) ------ Medium Storage Unit Large Matter Pod > --- WEAPON (3) ------- (None) > --- INVENTORY (10) --- Light Ion Engine Light Ion Engine Heavy Ion Engine Reinforced Deuterium Engine Large Matter Pod (115) Large Matter Pod (0) Reaction Control System Reaction Control System Peak State ------------ > --- POWER ------------ Light Ion Engine > --- PROPULSION ------- Aluminum Leg Improved Aluminum Leg > --- UTILITY ---------- Medium Storage Unit Medium Matter Pod Visual Processing Unit > --- WEAPON ----------- EM Pulse Cannon Light Assault Rifle Rocket Launcher > --- INVENTORY -------- Light Ion Engine Light Ion Engine Aluminum Leg High-capacity Matter Pod Terrain Scanner Reaction Control System Reaction Control System Hardlight Generator [Rating: 15] Favorites ----------- Power Light Ion Engine Engine Light Ion Engine Propulsion Aluminum Leg Leg Aluminum Leg Utility Medium Matter Pod Device Hardlight Generator Storage Medium Matter Pod Processor Visual Processing Unit Weapon Assault Rifle Energy Gun EM Pulse Gun Energy Cannon EM Pulse Cannon Ballistic Gun Assault Rifle Launcher Rocket Launcher Build | -11 -10 -9 -9 -9 -8 ------- Run | Yrd Mat Mat Min Exi Min Slots Evolved 2 | . . 2 . . . Power . | . . . . . . Propulsion . | . . . . . . Utility 1 | . . 1 . . . Weapon 1 | . . 1 . . . Parts Attached 23 | 6 1 11 . 2 3 Power 3 | 1 . 2 . . . Engine 3 | 1 . 2 . . . Core . | . . . . . . Reactor . | . . . . . . Propulsion 5 | 2 . 2 . . 1 Treads . | . . . . . . Leg 5 | 2 . 2 . . 1 Wheel . | . . . . . . Hover . | . . . . . . Flight . | . . . . . . Utility 7 | 1 1 2 . 2 1 Device 1 | . . . . 1 . Storage 5 | 1 1 1 . 1 1 Processor 1 | . . 1 . . . Hackware . | . . . . . . Protection . | . . . . . . Artifact . | . . . . . . Weapon 8 | 2 . 5 . . 1 Energy Gun 1 | . . 1 . . . Energy Cannon 2 | . . 2 . . . Ballistic Gun 4 | 2 . 1 . . 1 Ballistic Cannon . | . . . . . . Launcher 1 | . . 1 . . . Special Weapon . | . . . . . . Impact Weapon . | . . . . . . Slashing Weapon . | . . . . . . Piercing Weapon . | . . . . . . Special Melee Weapon . | . . . . . . Unidentified Prototypes 1 | . . 1 . . . Parts Lost 13 | . . 4 . . 9 Power 2 | . . 1 . . 1 Propulsion 3 | . . . . . 3 Utility 2 | . . . . . 2 Weapon 6 | . . 3 . . 3 Highest Loss Streak 9 | . . 2 . . 9 To Critical Strikes 1 | . . . . . 1 Average Slot Usage (%) 90 | . 97 95 88 88 65 Engine 11 | . 14 10 11 11 9 Leg 21 | . 28 21 22 22 12 Device 1 | . . . . 2 5 Storage 22 | . 25 22 22 22 23 Processor 7 | . . 11 11 8 . Energy Gun 2 | . . 4 . . . Energy Cannon 1 | . . 2 . . . Ballistic Gun 16 | . 28 18 11 11 10 Launcher 5 | . . 3 11 11 3 Naked Turns . | . . . . . . Heaviest Build 32 | 12 14 26 25 32 32 Greatest Support 23 | 20 20 23 23 23 23 Greatest Overweight (x) 7 | . . 1 1 1 7 Average Overweight (x) . | . . . 1 1 2 Largest Inventory Capacity 10 | 8 8 10 10 10 10 Average Capacity 9 | 7 8 8 10 10 10 Most Carried 10 | 4 5 10 9 10 10 Average Carried 7 | 1 3 8 9 9 9 Final Capacity 10 | 8 8 10 10 10 10 Final Carried 10 | 2 5 9 9 10 8 Class Distribution -------------------- 67% | Mutant 32% | Skirmisher Dominant Class ---------------- Mutant | -10/Materials Skirmisher | -9/Materials Mutant | -9/Mines Mutant | -9/Exiles Mutant | -8/Mines Resources | -11 -10 -9 -9 -9 -8 ----------- Run | Yrd Mat Mat Min Exi Min Matter Collected 1296 | 272 96 317 90 450 71 Remotely . | . . . . . . Salvage Created 1115 | 93 96 755 116 . 55 Parts 81 | 1 10 57 4 . 9 Haulers Intercepted . | . . . . . . Recyclers Shooed 1 | . . 1 . . . Parts Field Recycled . | . . . . . . Retrieved Matter . | . . . . . . Parts Self-Destructed . | . . . . . . Prevented . | . . . . . . Kills | -11 -10 -9 -9 -9 -8 ------- Run | Yrd Mat Mat Min Exi Min Combat Hostiles Destroyed 30 | . 6 18 2 . 4 Guns 18 | . 6 11 . . 1 Cannons 1 | . . 1 . . . AOE 11 | . . 6 2 . 3 Classes Destroyed 8 | 1 2 4 . . 1 Worker 4 | . . 4 . . . Recycler 5 | 1 . 3 1 . . Operator 2 | . . 2 . . . Watcher 4 | . 1 3 . . . Swarmer 19 | . 6 10 . . 3 Grunt 6 | . . 4 2 . . Sentry 4 | . . 4 . . . Hunter 1 | . . . . . 1 Best Kill Streak 8 | 1 3 8 2 . 3 Combat Bots Only 7 | . 3 7 2 . 3 Max Kills in Single Turn 3 | 1 2 3 1 . 2 Gunslinging 1 | . 1 . . . . Exploded 2 | . . 2 1 . 2 Melee . | . . . . . . Uniques/NPCs Destroyed . | . . . . . . Combat | -11 -10 -9 -9 -9 -8 -------- Run | Yrd Mat Mat Min Exi Min Hostile Shots Fired 186 | . 13 75 3 . 95 Missed 54 | . 4 22 1 . 27 Damage Taken 1726 | . 72 649 23 . 982 Core 424 | . 16 77 . . 331 Absorbed by Shields 136 | . . . . . 136 Regen/Repaired (Parts) 27 | . . 27 . . . Core Remaining (%) 96 | 100 93 . . . . Volleys Fired 109 | 2 12 52 3 . 40 Largest 3 | 2 2 3 2 . 2 Hottest 116 | 40 40 116 53 . 53 Shots Fired 205 | 4 24 125 6 . 46 Gun 161 | 4 24 89 3 . 41 Cannon 12 | . . 12 . . . Launcher 32 | . . 24 3 . 5 Special . | . . . . . . Kinetic 150 | 4 24 78 3 . 41 Thermal . | . . . . . . Explosive 32 | . . 24 3 . 5 Electromagnetic 23 | . . 23 . . . Robot Hit Streak 9 | 3 6 9 4 . 8 Robot Miss Streak 6 | 1 2 6 1 . 3 Penetration Max . | . . . . . . Secondary Targets 3 | . 1 2 . . . Max Gunslinging Chain 1 | . 1 1 . . . Shots Hit Robots 126 | 3 15 72 4 . 32 Core Hits 70 | 2 8 44 6 . 10 Critical Kills . | . . . . . . Critical Parts Destroyed . | . . . . . . Critical Strikes . | . . . . . . Melee Attacks . | . . . . . . Impact . | . . . . . . Slashing . | . . . . . . Piercing . | . . . . . . Sneak Attacks . | . . . . . . Combat Hostiles . | . . . . . . Follow-up Attacks . | . . . . . . Damage Inflicted 2453 | 33 188 1665 224 . 343 Guns 1010 | 33 188 595 15 . 179 Cannons 131 | . . 131 . . . Explosions 1312 | . . 939 209 . 164 Melee . | . . . . . . Ramming . | . . . . . . Kinetic 939 | 33 188 524 15 . 179 Thermal 70 | . . 70 . . . Explosive 1242 | . . 869 209 . 164 Electromagnetic 202 | . . 202 . . . Impact . | . . . . . . Slashing . | . . . . . . Piercing . | . . . . . . Highest Corruption . | . . . . . . Average Corruption . | . . . . . . Corruption Purged . | . . . . . . Corruption Blocked . | . . . . . . Overload Shots . | . . . . . . Overflow Damage . | . . . . . . Projectiles . | . . . . . . Explosions . | . . . . . . Melee . | . . . . . . Knockbacks . | . . . . . . Impact . | . . . . . . Kinetic . | . . . . . . Secondary . | . . . . . . Self-Inflicted Damage 103 | . . 43 . . 60 Shots 4 | . . 2 . . 2 Rammed . | . . . . . . Targets Rammed . | . . . . . . Kicked . | . . . . . . Crushed . | . . . . . . Highest Temperature 187 | . . 187 14 . 8 Average Temperature 41 | . . 45 8 . 6 Received Heat Transfer 135 | . . 123 12 . . Siege Activations . | . . . . . . Robots Corrupted . | . . . . . . Combat Hostiles . | . . . . . . Parts Fried . | . . . . . . Impact Corruptions . | . . . . . . Robots Melted . | . . . . . . Combat Hostiles . | . . . . . . Parts Melted . | . . . . . . Heat Transferred 100 | . . 100 . . . Parts Sabotaged . | . . . . . . Parts Stolen . | . . . . . . Parts Stripped . | . . . . . . Power Chain Reactions 1 | . . 1 . . . Alert | -11 -10 -9 -9 -9 -8 ------- Run | Yrd Mat Mat Min Exi Min Peak Influence 456 | 5 151 456 222 . 106 Initial 152 | . 3 63 152 . . Average 155 | 2 65 201 195 . 80 Maximum Alert Level 2 | . . 2 1 . . Low Security (%) 60 | 100 100 42 36 . 100 Level 1 38 | . . 55 63 . . Level 2 1 | . . 2 . . . Level 3 . | . . . . . . Level 4 . | . . . . . . Level 5 . | . . . . . . High Security . | . . . . . . Max Security . | . . . . . . Squads Dispatched 6 | . 1 3 2 . . Investigation 2 | . . 1 1 . . Extermination . | . . . . . . Reinforcement 4 | . 1 2 1 . . Assault . | . . . . . . Garrison . | . . . . . . Intercept . | . . . . . . Searches Triggered . | . . . . . . Construction Impeded 1 | . . . 1 . . Haulers Reinforced . | . . . . . . Active Scanning Responses . | . . . . . . Cargo Convoy Interrupts . | . . . . . . Stealth | -11 -10 -9 -9 -9 -8 --------- Run | Yrd Mat Mat Min Exi Min Distress Signals 1 | . . 1 . . . Communications Jammed . | . . . . . . Distress Signals . | . . . . . . Times Spotted 40 | . 9 24 2 . 5 Peak Tracking Total 5 | . 3 5 2 . 3 Tactical Retreats 2 | . . 2 . . . Traps | -11 -10 -9 -9 -9 -8 ------- Run | Yrd Mat Mat Min Exi Min Traps Triggered . | . . . . . . Indirectly . | . . . . . . Trap Hack Attempts . | . . . . . . Triggered . | . . . . . . Disarmed . | . . . . . . Reprogrammed . | . . . . . . Reused . | . . . . . . Traps Extracted . | . . . . . . Installed . | . . . . . . Triggered . | . . . . . . Machines | -11 -10 -9 -9 -9 -8 ---------- Run | Yrd Mat Mat Min Exi Min Machines Disabled 5 | . . 5 . . . Max in Single Turn 2 | . . 2 . . . Machines Repaired . | . . . . . . Machines Dismantled . | . . . . . . Machines Sabotaged . | . . . . . . Overloaded Fab Kills . | . . . . . . Hacking | -11 -10 -9 -9 -9 -8 --------- Run | Yrd Mat Mat Min Exi Min Machines Accessed 5 | . . 3 1 1 . Terminals 3 | . . 2 1 . . Fabricators . | . . . . . . Repair Stations 1 | . . 1 . . . Recycling Units . | . . . . . . Scanalyzers . | . . . . . . Garrison Access . | . . . . . . Total Hacks 17 | . . 13 3 1 . Successful 12 | . . 9 2 1 . Failed 5 | . . 4 1 . . Catastrophic . | . . . . . . Database Lockouts . | . . . . . . Manual . | . . . . . . Terminals 7 | . . 4 3 . . Fabricators . | . . . . . . Repair Stations 9 | . . 9 . . . Recycling Units . | . . . . . . Scanalyzers . | . . . . . . Garrison Access . | . . . . . . Terminal Hacks 5 | . . 2 2 1 . Record 3 | . . . 2 1 . Branch Access Points 1 | . . 1 . . . Unreport Threat 1 | . . 1 . . . Fabricator Hacks . | . . . . . . Repair Station Hacks 7 | . . 7 . . . Scan Component 4 | . . 4 . . . Repair 3 | . . 3 . . . Recycling Unit Hacks . | . . . . . . Scanalyzer . | . . . . . . Garrison Access Hacks . | . . . . . . Unauthorized Hacks . | . . . . . . Terminals . | . . . . . . Fabricators . | . . . . . . Repair Stations . | . . . . . . Recycling Units . | . . . . . . Scanalyzers . | . . . . . . Garrison Access . | . . . . . . Data Cores Recovered 1 | . . 1 . . . Used . | . . . . . . Hacking Detections 2 | . . 1 1 . . Full Trace Events 2 | . . 1 1 . . Feedback Events . | . . . . . . Feedback Blocked . | . . . . . . Robot Schematics Acquired . | . . . . . . Robots Built . | . . . . . . Authchips . | . . . . . . Time . | . . . . . . Total Robot Build Rating . | . . . . . . Part Schematics Acquired . | . . . . . . Parts Built . | . . . . . . Authchips . | . . . . . . Time . | . . . . . . Total Part Build Rating . | . . . . . . Parts Repaired 3 | . . 3 . . . Time 78 | . . 78 . . . Parts Recycled . | . . . . . . Recycled Matter . | . . . . . . Retrieved Matter . | . . . . . . Retrieved Components . | . . . . . . Parts Scanalyzed . | . . . . . . Part Schematics Acquired . | . . . . . . Parts Damaged . | . . . . . . Bothacking | -11 -10 -9 -9 -9 -8 ------------ Run | Yrd Mat Mat Min Exi Min Used RIF Installer . | . . . . . . Robots Hacked . | . . . . . . Non-combat . | . . . . . . Combat . | . . . . . . Robot Hacks Applied . | . . . . . . Relay Couplers Released . | . . . . . . Fabnet Peak Effective % . | . . . . . . Robots Rewired . | . . . . . . Allies Hacked . | . . . . . . Hacks Repelled . | . . . . . . Allies | -11 -10 -9 -9 -9 -8 -------- Run | Yrd Mat Mat Min Exi Min Total Allies . | . . . . . . Largest Group . | . . . . . . Highest-Rated Group . | . . . . . . Highest-Rated Ally . | . . . . . . Total Orders . | . . . . . . Ally Attacks . | . . . . . . Total Damage . | . . . . . . Kills . | . . . . . . Allies Corrupted . | . . . . . . Allies Melted . | . . . . . . Intel | -11 -10 -9 -9 -9 -8 ------- Run | Yrd Mat Mat Min Exi Min Robot Analysis Total . | . . . . . . Derelict Logs Recovered 1 | . . . 1 . . Drone Launches . | . . . . . . Drone Recoveries . | . . . . . . Exploration | -11 -10 -9 -9 -9 -8 ------------- Run | Yrd Mat Mat Min Exi Min Turns Passed 1886 | 70 249 893 182 297 195 Spaces Moved 833 | 50 117 371 92 153 50 Core 26 | 13 . . . . 13 Treads . | . . . . . . Legs 807 | 37 117 371 92 153 37 Wheels . | . . . . . . Hover . | . . . . . . Flight . | . . . . . . Fastest Speed 50 | 50 120 120 190 190 190 Average Speed 152 | 101 120 134 190 190 229 Slowest Speed 400 | 120 120 190 190 190 400 Overloaded Moves . | . . . . . . Propulsion Burnouts . | . . . . . . Robots Hopped . | . . . . . . Cave-ins Triggered . | . . . . . . Exploration Rate (%) 25 | 3 22 36 23 53 14 Regions Visited 5 Branch Regions 3 Pre-discovered Areas 1 | . . . 1 . . Known Exits Taken 1 | . . 1 . . . Unknown Exits Taken 4 | 1 1 . 1 1 . Scrap Searched . | . . . . . . Spaces Dug . | . . . . . . Terrain Destroyed 212 | . . 138 20 . 54 Melee . | . . . . . . Projectile . | . . . . . . AOE 212 | . . 138 20 . 54 Terrain Rammed . | . . . . . . Walls Destroyed . | . . . . . . Machines Disabled . | . . . . . . Actions | -11 -10 -9 -9 -9 -8 --------- Run | Yrd Mat Mat Min Exi Min Total 1280 | 65 201 665 94 161 94 Wait 287 | . 68 219 . . . Move 828 | 49 116 370 91 152 50 Hop . | . . . . . . Pick Up 28 | 8 4 11 . 4 1 Fast Attach 2 | . . 2 . . . Attach 18 | 6 1 7 . 1 3 Detach . | . . . . . . Swap 3 | . . 2 . 1 . Drop 5 | . . 2 . 3 . Fire 109 | 2 12 52 3 . 40 Melee . | . . . . . . Ram . | . . . . . . Kick . | . . . . . . Crush . | . . . . . . Escape Stasis . | . . . . . . Rewire . | . . . . . . Trap . | . . . . . . Miscellaneous . | . . . . . . Route ------- -11/Scrapyard -10/Materials -9/Materials (discovered 2 exits: *Min x2) -9/Mines -9/Exiles -8/Mines History --------- Turn | Location | Event 3 | -11/Scrapyard | Discovered new exit (range 15) 71 | -11/Scrapyard | Entered Materials 297 | -10/Materials | Discovered new exit (range 13) 316 | -10/Materials | Build established: Mutant 320 | -10/Materials | Entered another Materials area 320 | -9/Materials | Evolved 2 slots: Utility x1, Weapon x1 358 | -9/Materials | Identified exit to Mines 627 | -9/Materials | Build established: Skirmisher 737 | -9/Materials | Destroyed 7 combat bots 931 | -9/Materials | Repaired Assault Rifle 931 | -9/Materials | Repaired Aluminum Leg 957 | -9/Materials | Repaired Aluminum Leg 1213 | -9/Materials | Entered Mines 1335 | -9/Mines | Build established: Mutant 1387 | -9/Mines | Deemed a non-threat by the Exiles lab entrance 1387 | -9/Mines | Discovered new exit (range 5) 1395 | -9/Mines | Entered Exiles 1395 | -9/Exiles | Found Exiles lab abandoned 1670 | -9/Exiles | Discovered new exit (range 14) 1692 | -9/Exiles | Entered Mines 1809 | -8/Mines | Core integrity fell below 50% 1870 | -8/Mines | Core integrity fell below 20% 1887 | -8/Mines | Destroyed by H-55 Commando with Assault Rifle Last Messages --------------- 01856_ U-05 Engineer lays Concrete. 01857_ Penetrated by Slug. 01858_ U-05 Engineer lays Concrete. 01859_ U-05 Engineer builds a Wall. 01860_ Lgt. Assault Rifle destroyed. 01862_ The unstable cave ceiling collapses. 01864_ U-05 Engineer lays Concrete. 01866_ Penetrated by Slug. 01867_ U-05 Engineer builds a Wall. 01869_ Penetrated by Slug. 01869_ Hvy. Ion Engine destroyed. 01872_ U-05 Engineer lays Concrete. 01872_ Slug penetrates Wall. 01873_ U-05 Engineer lays Concrete. 01875_ Penetrated by Slug. 01877_ U-05 Engineer lays Concrete. 01881_ Penetrated by Slug. 01882_ U-05 Engineer lays Concrete. 01884_ Acquired 51 matter. 01884_ U-05 Engineer lays Concrete. Map ----- +----------------------------------------------------+ | ?????????????????????????????????????????????????? | | ?????????????????????????????????????????????????? | | ?????????????????????????????????????????????????? | | ?????????????????????????????????????????????????? | | ?????????????????????????????????????????????????? | | ?????????????????????????????????????????????????? | | ?????????????????????????????????????????????????? | | ???????????????????????????????????????????????### | | ???????????????????????????????????????????????# | | ?????????????????????????????????????????###??## | | ?????????????????????????????????????????# ??# | | ?????????????????????????????????????????# #?## = | | ?????????????????????????????????????????# #?# | | ????????????????????????????##???????????# #?# | | ???????????????????????????? ???????????# #?## | | ????????????????????????????" ???????#### #### | | ????????????????????????????" ???????# | | ????????????????????????????? #??????# | | ?????????????????????????????? ##????# #### # # | | ??????????????????????????????? ##???# #??# #### | | ???????????????????????????????# ###?# #??# #??? | | ????????????????????????######## # ### #??# #??? | | ????????????????????????# # ## ## # #?? ??? | | ???????????????????## ### #### #?? ??? | | ?????????? # # # *### #?? ??? | | ??????????# h @ ! u *%## #? ?? | | ???????????# [ !== #? ?? | | ????????????# ###### !%= #? ?? | | ???????????????????##### ##### ######? ?? | | ???????????????????????### ##??####????? ##? | | ????????????????????????# #???????????? ? #??? | | ??????????????????????? ?????????????? ???? | | ????????????????????? ??????????????????? | | ???????????????????? ?????????????????? | | ??????????????????? ###### ?????????????????? | | ??????????????????? #?????### ????????????????? | | ?????????????????? ??????????# ???????????????? | | ??????????????????#???????????? ???????????????? | | ???????????????????????????????? ????????????????? | | ?????????????????????????????????????????????????? | | ?????????????????????????????????????????????????? | | ?????????????????????????????????????????????????? | | ?????????????????????????????????????????????????? | | | | | | | | | | | | | | | +----------------------------------------------------+ Best States ------------- Heat Dissipation 28 Energy Generation 14 Energy Capacity 280 Matter Stores 500 Matter Capacity 650 Sight Range 18 Terrain Scan Density 10 Evasion (%) 55 Item Schematics ----------------- None Robot Schematics ------------------ None Fabricated ------------ Nothing Alien Tech Used ----------------- None Achievements -------------- None Challenges ------------ None Game ------ Seed TransportTrapProtomatter Manual? 0 Play Time 00:23:54 Cumulative 36.9 hours Start 2024.03.20 @ 17:23:18 End 2024.03.20 @ 17:51:08 Sessions 1 Manual Loads 0 Difficulty Rogue Special Mode None Game No. 64 Rogue 52 Adventurer 12 Explorer 0 Win Type - Total 0 Types 0/0/0/0/0/0/0/0/0 Lore% 13 Gallery% 23 Achievement% 19 Wizard Run 0 Options --------- Layout 0 ASCII 0 Keyboard 0 Movement Mouse Keybinds 0 Fullscreen 2 Font 18/SmallcapsGlow Map View 76x50 Zoom Use 53% Tactical HUD 1 Map Filters NONE Filters NONE Steam 1 RUN: 5349a21c-3e9c-42da-bfc9-931f86b88cc4